fUST/lending_fUST_20241203
["ID","MTS","AMOUNT","RATE_DAILY","PERIOD"]
[343963753,1733157038315,-500.0,0.00028638,7]
[343963755,1733157038325,-500.0,0.00028767,7]
[343963757,1733157038335,-249.46669606,0.00028767,7]
[343963760,1733157038346,-250.53330394,0.00028767,7]
[343963762,1733157038356,-500.0,0.00028767,7]
[343963763,1733157038366,-571.9,0.00028767,7]
[343963764,1733157038376,-164.83,0.00028767,7]
[343963765,1733157038385,-1525.29,0.00028767,7]
[343963766,1733157038395,-176.302447,0.00028776,2]
[343963767,1733157038404,-154.339905,0.00028776,2]
[343963768,1733157038414,-172.183979,0.00028776,2]
[343963769,1733157038424,-154.339904,0.00028776,2]
[343963770,1733157038437,-154.1,0.000288,31]
[343963771,1733157038447,-682.90657885,0.00028811,2]
[343963772,1733157038458,-648.19145528,0.00028911,7]
[343963773,1733157038467,-500.0,0.00028911,7]
[343963774,1733157038476,-500.0,0.00028911,7]
[343963775,1733157038486,-500.0,0.00028911,7]
[343963776,1733157038496,-500.0,0.00028911,7]
[343963777,1733157038506,-494.8089133,0.00028911,7]
[343963778,1733157038516,-463.69002386,0.00028911,7]
[343963779,1733157038526,-500.0,0.00028911,7]
[343963780,1733157038537,-346.79130758,0.00028911,7]
[343963781,1733157038546,-500.0,0.00028911,7]
[343963782,1733157038556,-500.0,0.00028911,7]
[343963783,1733157038566,-500.0,0.00028911,7]
[343963784,1733157038575,-500.0,0.00028911,7]
[343963785,1733157038585,-157.24280639,0.00028911,7]
[343963786,1733157038595,-500.0,0.00028911,7]
[343963787,1733157038605,-265.52895472,0.00028911,7]
[343963788,1733157038615,-500.0,0.00028911,7]
[343963789,1733157038625,-500.0,0.00028911,7]
[343963790,1733157038635,-617.32382843,0.00028911,7]
[343963791,1733157038645,-500.0,0.00028911,7]
[343963792,1733157038655,-500.0,0.00028911,7]
[343963793,1733157038665,-510.01370663,0.00028911,7]
[343963794,1733157038675,-500.0,0.00028911,7]
[343963795,1733157038685,-500.0,0.00028911,7]
[343963796,1733157038694,-500.0,0.00028911,7]
[343963797,1733157038703,-500.0,0.00028911,7]
[343963798,1733157038713,-500.0,0.00028911,7]
[343963799,1733157038723,-500.0,0.00028911,7]
[343963800,1733157038734,-500.0,0.00028911,7]
[343963801,1733157038744,-500.0,0.00028911,7]
[343963802,1733157038754,-500.0,0.00028911,7]
[343963803,1733157038763,-500.0,0.00028911,7]
[343963804,1733157038772,-500.0,0.00028911,7]
[343963805,1733157038782,-500.0,0.00028911,7]
[343963806,1733157038791,-500.0,0.00028911,7]
[343963807,1733157038802,-500.0,0.00028911,7]
[343963808,1733157038811,-500.0,0.00028911,7]
[343963809,1733157038821,-1875.18,0.00028911,7]
[343963810,1733157038832,-500.0,0.00028911,7]
[343963811,1733157038843,-207.90954709,0.00028911,7]
[343963812,1733157038853,-500.0,0.00028911,7]
[343963813,1733157038863,-637.04,0.00028911,7]
[343963814,1733157038872,-500.0,0.00028911,7]
[343963815,1733157038882,-500.0,0.00028911,7]
[343963816,1733157038891,-276.92600202,0.00028911,7]
[343963817,1733157038901,-392.76658989,0.00028911,7]
[343963818,1733157038910,-500.0,0.00028912,7]
[343963819,1733157038921,-500.0,0.00028912,7]
[343963820,1733157038931,-500.0,0.00028912,7]
[343963821,1733157038941,-500.0,0.00028912,7]
[343963822,1733157038951,-682.90657881,0.00029035,2]
[343963823,1733157038961,-500.0,0.00029041,7]
[343963824,1733157038970,-500.0,0.00029041,7]
[343963825,1733157038980,-500.0,0.00029041,7]
[343963826,1733157038990,-571.9,0.00029041,7]
[343963827,1733157039000,-1525.29,0.00029041,7]
[343963828,1733157039010,-500.0,0.00029185,7]
[343963829,1733157039020,-500.0,0.00029185,7]
[343963830,1733157039029,-510.14,0.00029185,7]
[343963831,1733157039039,-596.85,0.00029185,7]
[343963832,1733157039049,-500.0,0.00029185,7]
[343963833,1733157039058,-186.8,0.00029185,7]
[343963834,1733157039068,-500.0,0.00029185,7]
[343963835,1733157039078,-500.0,0.00029185,7]
[343963836,1733157039087,-500.0,0.00029185,7]
[343963837,1733157039097,-499.94796467,0.00029185,7]
[343963838,1733157039108,-1875.18,0.00029185,7]
[343963839,1733157039118,-500.0,0.00029185,7]
[343963840,1733157039128,-500.0,0.00029185,7]
[343963841,1733157039137,-500.0,0.00029185,7]
[343963842,1733157039147,-500.0,0.00029186,7]
[343963843,1733157039156,-500.0,0.00029186,7]
[343963844,1733157039165,-154.1,0.000292,31]
[343963845,1733157039175,-154.1,0.000292,31]
[343963846,1733157039184,-155.06978852,0.00029244,2]
[343963847,1733157039193,-682.90657881,0.00029259,2]
[343963848,1733157039203,-324.26997985,0.00029315,7]
[343963849,1733157039212,-500.0,0.00029315,7]
[343963850,1733157039221,-500.0,0.00029315,7]
[343963851,1733157039230,-571.9,0.00029315,7]
[343963852,1733157039239,-1525.29,0.00029315,7]
[343963853,1733157039249,-500.0,0.00029459,7]
[343963854,1733157039259,-491.18,0.00029459,7]
[343963855,1733157039268,-500.0,0.00029459,7]
[343963856,1733157039279,-500.0,0.00029459,7]
[343963857,1733157039288,-389.14143354,0.00029459,7]
[343963858,1733157039297,-1875.18,0.00029459,7]
[343963859,1733157039307,-500.0,0.00029459,7]
[343963860,1733157039317,-500.0,0.0002946,7]
[343963861,1733157039326,-682.90657881,0.00029483,2]
[343963862,1733157039336,-1211.0,0.00029489,15]
[343963863,1733157039346,-2179.20439641,0.000295,14]
[343963864,1733157039355,-500.0,0.00029589,7]
[343963865,1733157039366,-500.0,0.00029589,7]
[343963866,1733157039376,-571.9,0.00029589,7]
[343963867,1733157039387,-1525.29,0.00029589,7]
[343963868,1733157039397,-154.1,0.000296,31]
[343963869,1733157039408,-154.1,0.000296,31]
[343963870,1733157039418,-682.90657881,0.00029707,2]
[343963871,1733157039429,-394.7,0.00029733,7]
[343963872,1733157039440,-1875.18,0.00029733,7]
[343963873,1733157039452,-185.75,0.00029734,7]
[343963874,1733157039463,-155.04216128,0.00029822,2]
[343963875,1733157039474,-500.0,0.00029863,7]
[343963876,1733157039484,-627.30520736,0.00029863,7]
[343963877,1733157039494,-571.9,0.00029863,7]
[343963878,1733157039504,-1525.29,0.00029863,7]
[343963879,1733157039515,-500.0,0.00029999,2]
[343963880,1733157039527,-500.0,0.00029999,2]
[343963881,1733157039538,-374.92263251,0.00029999,2]
[343963882,1733157039548,-154.1,0.0003,31]
[343963883,1733157039558,-154.1,0.0003,31]
[343963885,1733157039567,-800.48228658,0.0003,2]
[343963887,1733157039577,-6487.12432266,0.0003,2]
[343963888,1733157039587,-167.91287049,0.0003,2]
[343963889,1733157039597,-1693.93957499,0.0003,3]
[343963890,1733157039607,-250.0,0.0003,2]
[343963891,1733157039618,-1875.18,0.00030007,7]
[343963892,1733157039628,-209.46866787,0.00030078,7]
[343963894,1733157039638,-1465.5,0.000301,2]
[343963896,1733157039647,-832.34,0.00030126,10]
[343963897,1733157039657,-500.0,0.00030136,7]
[343963898,1733157039667,-571.9,0.00030136,7]
[343963899,1733157039677,-1525.29,0.00030136,7]
[343963900,1733157039687,-420.0,0.00030181,2]
[343963901,1733157039697,-452.35,0.00030271,10]
[343963903,1733157039707,-1875.18,0.00030281,7]
[343963904,1733157039717,-1960.73508841,0.00030346,2]
[343963905,1733157039727,-750.13505947,0.00030369,2]
[343963906,1733157039737,-6666.0,0.0003037,2]
[343963907,1733157039746,-750.13505945,0.00030372,2]
[343963909,1733157039755,-750.13505945,0.00030374,2]
[343963911,1733157039764,-750.13505945,0.00030377,2]
[343963912,1733157039774,-750.13505945,0.00030379,2]
[343963913,1733157039783,-154.1,0.000304,31]
[343963914,1733157039793,-154.1,0.000304,31]
[343963915,1733157039802,-489.73,0.000304,2]
[343963917,1733157039812,-500.0,0.0003041,7]
[343963918,1733157039822,-571.9,0.0003041,7]
[343963919,1733157039831,-1525.29,0.0003041,7]
[343963920,1733157039841,-507.61996873,0.00030458,2]
[343963921,1733157039850,-501.55140692,0.00030461,11]
[343963922,1733157039860,-784.63234294,0.00030469,2]
[343963923,1733157039870,-151.0,0.00030469,7]
[343963924,1733157039880,-156.165391,0.00030469,7]
[343963925,1733157039889,-151.0,0.00030469,7]
[343963926,1733157039900,-151.0,0.00030469,7]
[343963927,1733157039910,-151.0,0.00030469,7]
[343963928,1733157039919,-151.0,0.00030469,7]
[343963929,1733157039929,-151.0,0.00030469,7]
[343963930,1733157039938,-170.124265,0.00030469,7]
[343963931,1733157039948,-151.0,0.00030469,7]
[343963932,1733157039957,-151.0,0.00030469,7]
[343963933,1733157039967,-151.0,0.00030469,7]
[343963934,1733157039977,-218.842112,0.00030469,7]
[343963935,1733157039987,-151.0,0.00030469,7]
[343963936,1733157039996,-151.0,0.00030469,7]
[343963937,1733157040006,-186.837728,0.00030469,7]
[343963938,1733157040015,-169.275719,0.00030469,7]
[343963939,1733157040025,-169.275719,0.00030469,7]
[343963940,1733157040034,-169.275719,0.00030469,7]
[343963941,1733157040043,-169.275719,0.00030469,7]
[343963942,1733157040053,-169.275719,0.00030469,7]
[343963943,1733157040062,-169.275719,0.00030469,7]
[343963944,1733157040072,-169.275717,0.00030469,7]
[343963945,1733157040081,-349.0964429,0.0003047,120]
[343963946,1733157040090,-157.033705,0.0003047,7]
[343963947,1733157040099,-157.033705,0.0003047,7]
[343963948,1733157040109,-157.033705,0.0003047,7]
[343963949,1733157040118,-157.033705,0.0003047,7]
[343963950,1733157040128,-157.033705,0.0003047,7]
[343963951,1733157040215,-157.033705,0.0003047,7]
[343963952,1733157040225,-157.033705,0.0003047,7]
[343963953,1733157040235,-157.033705,0.0003047,7]
[343963954,1733157040245,-157.033705,0.0003047,7]
[343963955,1733157040257,-157.033705,0.0003047,7]
[343963956,1733157040267,-157.033705,0.0003047,7]
[343963957,1733157040276,-157.033705,0.0003047,7]
[343963958,1733157040286,-157.033705,0.0003047,7]
[343963959,1733157040295,-157.033705,0.0003047,7]
[343963960,1733157040305,-157.033705,0.0003047,7]
[343963961,1733157040315,-157.033705,0.0003047,7]
[343963962,1733157040327,-157.033705,0.0003047,7]
[343963963,1733157040337,-157.033705,0.0003047,7]
[343963964,1733157040349,-157.033705,0.0003047,7]
[343963965,1733157040360,-157.033703,0.0003047,7]
[343963966,1733157040371,-250.0,0.00030473,5]
[343963967,1733157040382,-502.57895296,0.00030473,5]
[343963968,1733157040394,-334.0397932,0.00030473,2]
[343963969,1733157040404,-282.09399042,0.00030473,5]
[343963970,1733157040415,-500.0,0.00030473,5]
[343963971,1733157040425,-365.33234357,0.00030473,5]
[343963972,1733157040436,-151.0,0.00030477,7]
[343963973,1733157040450,-151.0,0.00030477,7]
[343963974,1733157040459,-151.0,0.00030477,7]
[343963975,1733157040470,-151.0,0.00030477,7]
[343963976,1733157040481,-151.0,0.00030477,7]
[343963977,1733157040491,-285.553956,0.00030477,7]
[343963978,1733157040500,-152.707552,0.00030477,7]
[343963979,1733157040510,-151.0,0.00030477,7]
[343963980,1733157040521,-151.0,0.00030477,7]
[343963981,1733157040531,-151.0,0.00030477,7]
[343963982,1733157040542,-151.0,0.00030477,7]
[343963983,1733157040552,-151.0,0.00030477,7]
[343963984,1733157040562,-151.0,0.00030477,7]
[343963985,1733157040573,-151.0,0.00030477,7]
[343963986,1733157040583,-151.0,0.00030477,7]
[343963987,1733157040594,-151.0,0.00030477,7]
[343963988,1733157040603,-151.0,0.00030477,7]
[343963989,1733157040613,-151.0,0.00030477,7]
[343963990,1733157040622,-151.0,0.00030477,7]
[343963991,1733157040632,-151.0,0.00030477,7]
[343963992,1733157040641,-151.0,0.00030477,7]
[343963993,1733157040651,-298.7964,0.00030477,7]
[343963994,1733157040661,-151.0,0.00030477,7]
[343963995,1733157040670,-151.0,0.00030477,7]
[343963996,1733157040680,-151.0,0.00030477,7]
[343963997,1733157040690,-151.0,0.00030477,7]
[343963998,1733157040700,-151.0,0.00030477,7]
[343963999,1733157040710,-151.0,0.00030477,7]
[343964000,1733157040720,-151.0,0.00030477,7]
[343964001,1733157040730,-151.0,0.00030477,7]
[343964002,1733157040739,-151.0,0.00030477,7]
[343964003,1733157040749,-298.142172,0.00030477,7]
[343964004,1733157040758,-296.87945,0.00030477,7]
[343964005,1733157040767,-296.87945,0.00030477,7]
[343964006,1733157040777,-296.87945,0.00030477,7]
[343964007,1733157040787,-296.87945,0.00030477,7]
[343964008,1733157040797,-296.87945,0.00030477,7]
[343964009,1733157040806,-296.87945,0.00030477,7]
[343964010,1733157040815,-296.87945,0.00030477,7]
[343964011,1733157040825,-296.87945,0.00030477,7]
[343964012,1733157040835,-296.87945,0.00030477,7]
[343964013,1733157040845,-296.87945,0.00030477,7]
[343964014,1733157040854,-296.87945,0.00030477,7]
[343964015,1733157040864,-296.87945,0.00030477,7]
[343964016,1733157040873,-296.87945,0.00030477,7]
[343964017,1733157040883,-296.87945,0.00030477,7]
[343964018,1733157040893,-296.87945,0.00030477,7]
[343964019,1733157040903,-296.87945,0.00030477,7]
[343964020,1733157040912,-296.87945,0.00030477,7]
[343964021,1733157040922,-296.87945,0.00030477,7]
[343964022,1733157040932,-296.87945,0.00030477,7]
[343964023,1733157040942,-296.87945,0.00030477,7]
[343964024,1733157040951,-376.23470924,0.00030478,2]
[343964025,1733157040961,-23723.65360472,0.00030479,2]
[343964026,1733157040971,-872473.09523827,0.00030479,10]
[343964034,1733157042015,-433.3098919,0.00029489,15]
[343964035,1733157042027,-172.0901081,0.00029489,15]
[343964036,1733157042037,-542.66989189,0.00029931,2]
[343964076,1733157043214,-140.23668692,0.00029931,2]
[343964078,1733157043225,-868.74,0.00030171,10]
[343964080,1733157043235,-1948.96735696,0.00030479,14]
[343964082,1733157043248,-21103.10046692,0.00030479,10]
[343964084,1733157043260,-8633.96380893,0.00030479,10]
[343964086,1733157043272,-4497.32987054,0.00030479,10]
[343964123,1733157046142,-1169.27083333,0.00027397,7]
[343964124,1733157046152,-1169.27083333,0.00027945,7]
[343964125,1733157046162,-1169.27083333,0.00028493,7]
[343964126,1733157046171,-682.90657881,0.00030155,2]
[343964127,1733157046181,-3112.58092108,0.00030479,10]
[343964140,1733157837271,340.605276,0.00013973,2]
[343964145,1733158027137,-5000.0,0.00019212,2]
[343964146,1733158027158,-534.43297898,0.00019406,2]
[343964156,1733158172224,-4465.56702102,0.00019791,2]
[343964157,1733158172245,-300.0,0.00019999,2]
[343964158,1733158172265,-300.0,0.00019999,2]
[343964159,1733158172286,-1169.27083333,0.0002,2]
[343964160,1733158172305,-343.01431174,0.0002,2]
[343964161,1733158172326,-340.605276,0.00020447,2]
[343964162,1733158172349,-420.0,0.00021777,2]
[343964163,1733158172378,-420.0,0.00021999,2]
[343964164,1733158172399,-7144.0,0.00023611,2]
[343964165,1733158172421,-1691.42889244,0.00023612,2]
[343964166,1733158172443,-164.212994,0.0002362,2]
[343964167,1733158172466,-24900.0,0.0002362,2]
[343964168,1733158172488,-587.0,0.00023712,2]
[343964169,1733158172511,-293.976925,0.00023754,2]
[343964170,1733158172536,-250.0,0.00024153,2]
[343964171,1733158172567,-587.0,0.00024199,2]
[343964172,1733158172589,-1691.42889241,0.00024578,2]
[343964173,1733158172614,-162.0,0.00025,2]
[343964174,1733158172634,-160.114495,0.00025027,2]
[343964175,1733158172655,-1691.42889241,0.00025544,2]
[343964176,1733158172676,-172.738419,0.00025638,2]
[343964177,1733158172700,-823.0,0.0002582,2]
[343964178,1733158172725,-1270.9678869,0.00025912,2]
[343964179,1733158172746,-1691.42889241,0.0002651,2]
[343964180,1733158172772,-823.0,0.00026619,2]
[343964181,1733158172793,-340.605276,0.00026921,2]
[343964182,1733158172814,-500.0,0.00027267,2]
[343964183,1733158172838,-250.0,0.00027267,2]
[343964184,1733158172862,-365.33234357,0.00027267,2]
[343964185,1733158172883,-153.01314582,0.00027297,2]
[343964186,1733158172904,-502.57895296,0.00027373,2]
[343964187,1733158172935,-500.0,0.00027397,2]
[343964188,1733158172956,-161.93465567,0.00027397,7]
[343964189,1733158172977,-500.0,0.00027397,7]
[343964190,1733158172997,-500.0,0.00027397,7]
[343964191,1733158173019,-629.55191917,0.00027397,7]
[343964192,1733158173041,-500.0,0.00027397,7]
[343964193,1733158173062,-500.0,0.00027397,7]
[343964194,1733158173087,-500.0,0.00027397,7]
[343964195,1733158173118,-254.29369596,0.00027397,7]
[343964196,1733158173140,-2769.97,0.00027397,7]
[343964197,1733158173161,-500.0,0.00027397,7]
[343964198,1733158173183,-500.0,0.00027397,7]
[343964199,1733158173204,-500.0,0.00027397,7]
[343964200,1733158173225,-500.0,0.00027397,7]
[343964201,1733158173247,-500.0,0.00027397,7]
[343964202,1733158173270,-500.0,0.00027397,7]
[343964203,1733158173291,-247.76828152,0.00027397,7]
[343964204,1733158173312,-470.75536038,0.00027397,7]
[343964205,1733158173445,-648.19145528,0.00027397,7]
[343964206,1733158173470,-500.0,0.00027397,7]
[343964207,1733158173493,-500.0,0.00027397,7]
[343964208,1733158173515,-500.0,0.00027397,7]
[343964209,1733158173538,-500.0,0.00027397,7]
[343964210,1733158173561,-500.0,0.00027397,7]
[343964211,1733158173584,-500.0,0.00027397,7]
[343964212,1733158173606,-557.72713599,0.00027397,7]
[343964213,1733158173632,-500.0,0.00027397,7]
[343964214,1733158173654,-500.0,0.00027397,7]
[343964215,1733158173676,-500.0,0.00027397,7]
[343964216,1733158173700,-500.0,0.00027397,7]
[343964217,1733158173722,-500.0,0.00027397,7]
[343964218,1733158173744,-500.0,0.00027397,7]
[343964219,1733158173767,-500.0,0.00027397,7]
[343964220,1733158173790,-500.0,0.00027397,7]
[343964221,1733158173813,-500.0,0.00027397,7]
[343964222,1733158173839,-504.84,0.00027397,7]
[343964223,1733158173869,-773.59,0.00027397,7]
[343964224,1733158173892,-500.0,0.00027397,7]
[343964225,1733158173914,-500.0,0.00027397,7]
[343964226,1733158173937,-1691.42889241,0.00027477,2]
[343964227,1733158173960,-577.77719186,0.00027534,2]
[343964228,1733158173983,-166.982,0.00027534,16]
[343964229,1733158174004,-220.46442603,0.00027534,2]
[343964230,1733158174025,-500.0,0.00027534,7]
[343964231,1733158174048,-168.0,0.00027534,7]
[343964232,1733158174071,-491.18,0.00027534,7]
[343964233,1733158174092,-500.0,0.00027534,7]
[343964234,1733158174119,-500.0,0.00027534,7]
[343964235,1733158174140,-500.0,0.00027534,7]
[343964236,1733158174162,-500.0,0.00027534,7]
[343964237,1733158174184,-500.0,0.00027534,7]
[343964238,1733158174206,-1797.05,0.00027534,7]
[343964239,1733158174228,-500.0,0.00027534,7]
[343964240,1733158174250,-500.0,0.00027534,7]
[343964241,1733158174271,-637.04,0.00027534,7]
[343964242,1733158174294,-500.0,0.00027534,7]
[343964243,1733158174315,-500.0,0.00027534,7]
[343964244,1733158174336,-276.92600202,0.00027534,7]
[343964245,1733158174363,-500.0,0.00027534,7]
[343964246,1733158174384,-439.51049514,0.00027534,7]
[343964247,1733158174407,-500.0,0.00027534,7]
[343964248,1733158174435,-500.0,0.00027671,7]
[343964249,1733158174458,-294.75121856,0.00027671,7]
[343964342,1733158234271,-1169.27083333,0.0002,2]
[343964343,1733158234281,-282.09399042,0.00027373,2]
[343964344,1733158234291,-417.18122625,0.00027373,2]
[343964345,1733158234304,-82.81877375,0.00027373,2]
[343964346,1733158234315,-300.0,0.00027396,2]
[343964347,1733158234325,-300.0,0.00027396,2]
[343964348,1733158234335,-494.8089133,0.00027397,7]
[343964349,1733158234346,-1169.27083333,0.00027397,7]
[343964350,1733158234356,-2654.56,0.00027397,7]
[343964351,1733158234367,-463.69002386,0.00027397,7]
[343964352,1733158234377,-500.0,0.00027397,7]
[343964353,1733158234387,-500.0,0.00027397,7]
[343964354,1733158234397,-1169.27083333,0.00027534,7]
[343964355,1733158234411,-500.0,0.00027534,7]
[343964356,1733158234421,-500.0,0.00027671,7]
[343964357,1733158234431,-500.0,0.00027671,7]
[343964358,1733158234442,-500.0,0.00027671,7]
[343964359,1733158234452,-500.0,0.00027671,7]
[343964360,1733158234462,-500.0,0.00027671,7]
[343964361,1733158234472,-500.0,0.00027671,7]
[343964362,1733158234482,-500.0,0.00027671,7]
[343964363,1733158234492,-500.0,0.00027671,7]
[343964364,1733158234502,-500.0,0.00027671,7]
[343964365,1733158234512,-773.59,0.00027671,7]
[343964366,1733158234522,-1169.27083333,0.00027671,7]
[343964367,1733158234533,-2654.56,0.00027671,7]
[343964368,1733158234543,-301.14,0.00027671,7]
[343964369,1733158234553,-813.98249333,0.00027707,2]
[343964370,1733158234563,-500.0,0.00027796,2]
[343964371,1733158234573,-500.0,0.00027796,2]
[343964372,1733158234582,-500.0,0.00027796,2]
[343964373,1733158234592,-500.0,0.00027796,2]
[343964374,1733158234602,-500.0,0.00027796,2]
[343964375,1733158234612,-500.0,0.00027796,2]
[343964376,1733158234621,-500.0,0.00027796,2]
[343964377,1733158234631,-500.0,0.00027796,2]
[343964378,1733158234641,-500.0,0.00027796,2]
[343964379,1733158234652,-500.0,0.00027796,2]
[343964380,1733158234671,-500.0,0.00027796,2]
[343964381,1733158234680,-173.27785677,0.00027796,2]
[343964382,1733158234692,-500.0,0.00027796,2]
[343964383,1733158234702,-192.59090878,0.00027796,2]
[343964384,1733158234712,-500.0,0.00027796,2]
[343964385,1733158234722,-500.0,0.00027796,2]
[343964386,1733158234732,-500.0,0.00027796,2]
[343964387,1733158234741,-500.0,0.00027796,2]
[343964388,1733158234751,-500.0,0.00027796,2]
[343964389,1733158234761,-500.0,0.00027796,2]
[343964390,1733158234771,-500.0,0.00027796,2]
[343964391,1733158234780,-514.10962232,0.00027796,2]
[343964392,1733158234790,-500.0,0.00027796,2]
[343964393,1733158234799,-339.15828289,0.00027796,2]
[343964394,1733158234808,-500.0,0.00027796,2]
[343964395,1733158234817,-500.0,0.00027796,2]
[343964396,1733158234827,-500.0,0.00027796,2]
[343964397,1733158234837,-191.82610365,0.00027796,2]
[343964398,1733158234850,-500.0,0.00027796,2]
[343964399,1733158234860,-500.0,0.00027796,2]
[343964400,1733158234869,-500.0,0.00027796,2]
[343964401,1733158234879,-500.0,0.00027796,2]
[343964402,1733158234890,-500.0,0.00027796,2]
[343964403,1733158234900,-500.0,0.00027796,2]
[343964404,1733158234913,-268.03238027,0.00027796,2]
[343964405,1733158234926,-500.0,0.00027796,2]
[343964406,1733158234939,-500.0,0.00027796,2]
[343964407,1733158234952,-500.0,0.00027796,2]
[343964408,1733158234964,-500.0,0.00027796,2]
[343964409,1733158234976,-316.60320641,0.00027796,2]
[343964410,1733158234988,-500.0,0.00027796,2]
[343964411,1733158234999,-500.0,0.00027796,2]
[343964412,1733158235009,-500.0,0.00027796,2]
[343964413,1733158235021,-500.0,0.00027796,2]
[343964414,1733158235034,-500.0,0.00027796,2]
[343964415,1733158235045,-500.0,0.00027796,2]
[343964416,1733158235058,-500.0,0.00027796,2]
[343964417,1733158235070,-500.0,0.00027796,2]
[343964418,1733158235082,-500.0,0.00027796,2]
[343964419,1733158235093,-500.0,0.00027796,2]
[343964420,1733158235105,-500.0,0.00027796,2]
[343964421,1733158235117,-500.0,0.00027796,2]
[343964422,1733158235128,-500.0,0.00027796,2]
[343964423,1733158235140,-500.0,0.00027796,2]
[343964424,1733158235152,-450.0,0.00027796,2]
[343964425,1733158235168,-500.0,0.00027796,2]
[343964426,1733158235179,-500.0,0.00027796,2]
[343964427,1733158235192,-500.0,0.00027796,2]
[343964428,1733158235203,-500.0,0.00027796,2]
[343964429,1733158235213,-500.0,0.00027796,2]
[343964430,1733158235224,-500.0,0.00027796,2]
[343964431,1733158235235,-500.0,0.00027796,2]
[343964432,1733158235245,-500.0,0.00027796,2]
[343964433,1733158235256,-500.0,0.00027796,2]
[343964434,1733158235268,-500.0,0.00027796,2]
[343964435,1733158235280,-500.0,0.00027796,2]
[343964436,1733158235291,-500.0,0.00027796,2]
[343964437,1733158235303,-500.0,0.00027796,2]
[343964438,1733158235313,-500.0,0.00027796,2]
[343964439,1733158235324,-500.0,0.00027796,2]
[343964440,1733158235335,-500.0,0.00027796,2]
[343964441,1733158235346,-500.0,0.00027796,2]
[343964442,1733158235356,-500.0,0.00027796,2]
[343964443,1733158235366,-500.0,0.00027796,2]
[343964444,1733158235377,-500.0,0.00027796,2]
[343964445,1733158235388,-500.0,0.00027796,2]
[343964446,1733158235398,-500.0,0.00027796,2]
[343964447,1733158235413,-500.0,0.00027796,2]
[343964448,1733158235424,-500.0,0.00027796,2]
[343964449,1733158235436,-500.0,0.00027796,2]
[343964450,1733158235447,-500.0,0.00027796,2]
[343964451,1733158235459,-500.0,0.00027796,2]
[343964452,1733158235470,-500.0,0.00027796,2]
[343964453,1733158235481,-500.0,0.00027796,2]
[343964454,1733158235495,-193.79863669,0.00027796,2]
[343964455,1733158235507,-500.0,0.00027796,2]
[343964456,1733158235520,-500.0,0.00027796,2]
[343964457,1733158235532,-479.62257849,0.00027796,2]
[343964458,1733158235544,-500.0,0.00027796,2]
[343964459,1733158235556,-500.0,0.00027796,2]
[343964460,1733158235567,-500.0,0.00027796,2]
[343964461,1733158235577,-500.0,0.00027796,2]
[343964462,1733158235587,-500.0,0.00027796,2]
[343964463,1733158235597,-500.0,0.00027796,2]
[343964464,1733158235607,-500.0,0.00027796,2]
[343964465,1733158235617,-500.0,0.00027796,2]
[343964466,1733158235627,-500.0,0.00027796,2]
[343964467,1733158235638,-500.0,0.00027796,2]
[343964468,1733158235649,-500.0,0.00027796,2]
[343964469,1733158235664,-500.0,0.00027796,2]